Cogmind - Beta 13 @@@ ROGUE MODE // 2024.07.30 @ 19:45:32 Player: Sgt. SmokeWeed Result: Destroyed by D-53 Grenadier with Mini Grenade Launcher Performance ------------- Evolutions (0) 0 Regions Visited (2) 400 Robots Destroyed (5) 25 Value Destroyed (86) 86 Prototype IDs (0) 0 Alien Tech Used (0) 0 Bonus (14) 14 TOTAL SCORE: 525 Bonus ------- Follower Combat Kills 14 Cogmind --------- Core Integrity 0/250 Matter 300/300 Energy 100/100 System Corruption 0% Temperature Cool (0) Movement Core (50) Location -10/Mines Parts ------- > --- POWER (1) -------- (None) > --- PROPULSION (2) --- (None) > --- UTILITY (2) ------ (None) > --- WEAPON (2) ------- (None) > --- INVENTORY (5) ---- Light Angular Momentum Engine Heavy Hammer Heavy Hammer Heavy Hammer Heavy Hammer Peak State ------------ > --- POWER ------------ Light Angular Momentum Engine > --- PROPULSION ------- Light Treads Light Treads > --- UTILITY ---------- (None) > --- WEAPON ----------- Spread Laser Heavy Hammer > --- INVENTORY -------- Spread Laser Spread Laser Heavy Hammer Heavy Hammer Heavy Hammer [Rating: 12] Favorites ----------- Power Light Ion Engine Engine Light Ion Engine Propulsion Light Treads Treads Light Treads Utility None Weapon Heavy Hammer Energy Gun Spread Laser Ballistic Gun Assault Rifle Impact Weapon Heavy Hammer Build | -11 -10 -10 ------- Run | Yrd Mat Min Slots Evolved . | . . . Power . | . . . Propulsion . | . . . Utility . | . . . Weapon . | . . . Parts Attached 9 | 5 2 2 Power 2 | 1 . 1 Engine 2 | 1 . 1 Core . | . . . Reactor . | . . . Propulsion 2 | 2 . . Treads 2 | 2 . . Leg . | . . . Wheel . | . . . Hover . | . . . Flight . | . . . Utility . | . . . Device . | . . . Storage . | . . . Processor . | . . . Hackware . | . . . Protection . | . . . Artifact . | . . . Weapon 5 | 2 2 1 Energy Gun 2 | . 1 1 Energy Cannon . | . . . Ballistic Gun 2 | 2 . . Ballistic Cannon . | . . . Launcher . | . . . Special Weapon . | . . . Impact Weapon 1 | . 1 . Slashing Weapon . | . . . Piercing Weapon . | . . . Special Melee Weapon . | . . . Unidentified Prototypes . | . . . Parts Lost . | . . . Power . | . . . Propulsion . | . . . Utility . | . . . Weapon . | . . . Highest Loss Streak . | . . . To Critical Strikes . | . . . Average Slot Usage (%) 68 | . 71 64 Engine 13 | . 14 13 Treads 27 | . 28 25 Energy Gun 10 | . 9 13 Ballistic Gun 6 | . 9 . Impact Weapon 10 | . 9 12 Naked Turns 10 | . . 10 Heaviest Build 15 | 6 9 15 Greatest Support 40 | 40 40 40 Greatest Overweight (x) . | . . . Average Overweight (x) . | . . . Largest Inventory Capacity 5 | 5 5 5 Average Capacity 5 | 5 5 5 Most Carried 5 | . 5 5 Average Carried 3 | . 3 4 Final Capacity 5 | 5 5 5 Final Carried 5 | . 5 5 Class Distribution -------------------- 100% | Mutant Dominant Class ---------------- Mutant | -10/Materials Mutant | -10/Mines Resources | -11 -10 -10 ----------- Run | Yrd Mat Min Matter Collected 306 | 254 32 20 Remotely . | . . . Salvage Created 267 | . 137 130 Parts 10 | . 7 3 Haulers Intercepted 1 | . 1 . Recyclers Shooed 2 | . 1 1 Parts Field Recycled . | . . . Retrieved Matter . | . . . Parts Self-Destructed . | . . . Prevented . | . . . Kills | -11 -10 -10 ------- Run | Yrd Mat Min Combat Hostiles Destroyed 5 | . 2 3 Melee 2 | . . 2 Guns 2 | . 1 1 Classes Destroyed 5 | . 2 3 Hauler 1 | . 1 . Recycler 1 | . . 1 Swarmer 1 | . . 1 Grunt 2 | . 2 . Assembled 2 | . . 2 Best Kill Streak 2 | . 1 2 Combat Bots Only 2 | . 1 2 Max Kills in Single Turn 1 | . 1 1 Gunslinging . | . . . Exploded . | . . . Melee 1 | . . 1 Uniques/NPCs Destroyed . | . . . Combat | -11 -10 -10 -------- Run | Yrd Mat Min Hostile Shots Fired 40 | . 9 31 Missed 7 | . . 7 Damage Taken 423 | . 85 338 Core 252 | . 10 242 Absorbed by Shields . | . . . Core Remaining (%) 100 | 100 . . Volleys Fired 15 | 1 10 4 Largest 2 | 2 2 1 Hottest 65 | 40 65 65 Shots Fired 19 | 2 13 4 Gun 19 | 2 13 4 Cannon . | . . . Launcher . | . . . Special . | . . . Kinetic 8 | 2 6 . Thermal 11 | . 7 4 Explosive . | . . . Electromagnetic . | . . . Robot Hit Streak 4 | 1 2 4 Robot Miss Streak 6 | 1 6 3 Penetration Max . | . . . Secondary Targets . | . . . Shots Hit Robots 19 | 1 11 7 Core Hits 20 | 1 11 8 Critical Kills 1 | . . 1 Critical Parts Destroyed 1 | . 1 . Critical Strikes 2 | . 1 1 Smash 2 | . 1 1 Melee Attacks 6 | . 2 4 Impact 6 | . 2 4 Slashing . | . . . Piercing . | . . . Sneak Attacks 1 | . . 1 Combat Hostiles . | . . . Follow-up Attacks . | . . . Damage Inflicted 411 | 6 133 272 Guns 148 | 6 105 37 Cannons . | . . . Explosions . | . . . Melee 238 | . 28 210 Ramming 25 | . . 25 Kinetic 47 | 6 41 . Thermal 101 | . 64 37 Explosive . | . . . Electromagnetic . | . . . Impact 238 | . 28 210 Slashing . | . . . Piercing . | . . . Highest Corruption . | . . . Average Corruption . | . . . Corruption Purged . | . . . Corruption Blocked . | . . . Overload Shots . | . . . Overflow Damage 112 | . 28 84 Projectiles . | . . . Explosions . | . . . Melee 112 | . 28 84 Knockbacks 1 | . 1 . Impact 1 | . 1 . Kinetic . | . . . Secondary . | . . . Self-Inflicted Damage 12 | . . 12 Shots . | . . . Rammed 3 | . . 3 Targets Rammed 3 | . . 3 Kicked . | . . . Crushed . | . . . Highest Temperature 72 | . 72 56 Average Temperature 24 | . 26 22 Received Heat Transfer 190 | . 30 160 Siege Activations . | . . . Robots Corrupted . | . . . Combat Hostiles . | . . . Parts Fried 2 | . 1 1 Impact Corruptions 2 | . 1 1 Robots Melted . | . . . Combat Hostiles . | . . . Parts Melted . | . . . Heat Transferred 125 | . 75 50 Parts Sabotaged . | . . . Parts Stolen . | . . . Parts Stripped . | . . . Power Chain Reactions . | . . . Alert | -11 -10 -10 ------- Run | Yrd Mat Min Peak Influence 123 | . 120 123 Initial 46 | . . 46 Average 62 | . 59 93 Maximum Alert Level . | . . . Low Security (%) 100 | 100 100 100 Level 1 . | . . . Level 2 . | . . . Level 3 . | . . . Level 4 . | . . . Level 5 . | . . . High Security . | . . . Max Security . | . . . Squads Dispatched 2 | . 2 . Investigation 1 | . 1 . Extermination . | . . . Reinforcement 1 | . 1 . Assault . | . . . Garrison . | . . . Intercept . | . . . Searches Triggered . | . . . Construction Impeded . | . . . Haulers Reinforced . | . . . Active Scanning Responses . | . . . Cargo Convoy Interrupts . | . . . Stealth | -11 -10 -10 --------- Run | Yrd Mat Min Distress Signals 1 | . 1 . Communications Jammed . | . . . Distress Signals . | . . . Times Spotted 32 | . 9 23 Peak Tracking Total 20 | . 3 20 Tactical Retreats 1 | . . 1 Traps | -11 -10 -10 ------- Run | Yrd Mat Min Traps Triggered . | . . . Indirectly . | . . . Trap Hack Attempts . | . . . Triggered . | . . . Disarmed . | . . . Reprogrammed . | . . . Reused . | . . . Traps Extracted . | . . . Installed . | . . . Triggered . | . . . Machines | -11 -10 -10 ---------- Run | Yrd Mat Min Machines Disabled . | . . . Max in Single Turn . | . . . Machines Repaired . | . . . Machines Dismantled . | . . . Machines Sabotaged . | . . . Overloaded Fab Kills . | . . . Hacking | -11 -10 -10 --------- Run | Yrd Mat Min Machines Accessed 3 | . 3 . Terminals 3 | . 3 . Fabricators . | . . . Repair Stations . | . . . Recycling Units . | . . . Scanalyzers . | . . . Garrison Access . | . . . Total Hacks 8 | . 8 . Successful 1 | . 1 . Failed 7 | . 7 . Catastrophic 3 | . 3 . Database Lockouts . | . . . Manual 5 | . 5 . Terminals 8 | . 8 . Fabricators . | . . . Repair Stations . | . . . Recycling Units . | . . . Scanalyzers . | . . . Garrison Access . | . . . Terminal Hacks 1 | . 1 . Branch Access Points 1 | . 1 . Fabricator Hacks . | . . . Repair Station Hacks . | . . . Recycling Unit Hacks . | . . . Scanalyzer . | . . . Garrison Access Hacks . | . . . Unauthorized Hacks . | . . . Terminals . | . . . Fabricators . | . . . Repair Stations . | . . . Recycling Units . | . . . Scanalyzers . | . . . Garrison Access . | . . . Data Cores Recovered . | . . . Used . | . . . Hacking Detections 3 | . 3 . Full Trace Events 1 | . 1 . Feedback Events . | . . . Feedback Blocked . | . . . Robot Schematics Acquired . | . . . Robots Built . | . . . Authchips . | . . . Time . | . . . Total Robot Build Rating . | . . . Part Schematics Acquired . | . . . Parts Built . | . . . Authchips . | . . . Time . | . . . Total Part Build Rating . | . . . Parts Repaired . | . . . Time . | . . . Parts Recycled . | . . . Recycled Matter . | . . . Retrieved Matter . | . . . Retrieved Components . | . . . Parts Scanalyzed . | . . . Part Schematics Acquired . | . . . Parts Damaged . | . . . Bothacking | -11 -10 -10 ------------ Run | Yrd Mat Min Used RIF Installer . | . . . Robots Hacked . | . . . Non-combat . | . . . Combat . | . . . Robot Hacks Applied . | . . . Relay Couplers Released . | . . . Fabnet Peak Effective % . | . . . Robots Rewired . | . . . Allies Hacked . | . . . Hacks Repelled . | . . . Allies | -11 -10 -10 -------- Run | Yrd Mat Min Total Allies 2 | . . 2 Largest Group 2 | . . 2 Highest-Rated Group 41 | . . 41 Highest-Rated Ally 31 | . . 31 Total Orders . | . . . Ally Attacks 7 | . . 7 Total Damage 63 | . . 63 Kills 2 | . . 2 Allies Corrupted . | . . . Allies Melted . | . . . Intel | -11 -10 -10 ------- Run | Yrd Mat Min Robot Analysis Total . | . . . Derelict Logs Recovered 3 | . . 3 Drone Launches . | . . . Drone Recoveries . | . . . Exploration | -11 -10 -10 ------------- Run | Yrd Mat Min Turns Passed 530 | 57 316 157 Spaces Moved 294 | 34 171 89 Core 19 | 6 . 13 Treads 275 | 28 171 76 Legs . | . . . Wheels . | . . . Hover . | . . . Flight . | . . . Fastest Speed 50 | 50 160 50 Average Speed 152 | 140 160 143 Slowest Speed 160 | 160 160 160 Overloaded Moves . | . . . Propulsion Burnouts . | . . . Robots Hopped . | . . . Cave-ins Triggered . | . . . Exploration Rate (%) 20 | 4 39 17 Regions Visited 2 Branch Regions 1 Pre-discovered Areas 2 | . . 2 Known Exits Taken 1 | . 1 . Unknown Exits Taken 1 | 1 . . Scrap Searched 1 | . . 1 Spaces Dug . | . . . Terrain Destroyed . | . . . Melee . | . . . Projectile . | . . . AOE . | . . . Terrain Rammed . | . . . Walls Destroyed . | . . . Machines Disabled . | . . . Actions | -11 -10 -10 --------- Run | Yrd Mat Min Total 347 | 39 198 110 Wait 7 | . 7 . Move 292 | 33 170 89 Hop . | . . . Pick Up 5 | . 5 . Fast Attach 7 | 5 2 . Attach . | . . . Detach 2 | . . 2 Swap 2 | . . 2 Drop 8 | . 2 6 Fire 15 | 1 10 4 Melee 6 | . 2 4 Ram 3 | . . 3 Kick . | . . . Crush . | . . . Escape Stasis . | . . . Rewire . | . . . Trap . | . . . Miscellaneous . | . . . Route ------- -11/Scrapyard -10/Materials (discovered 3 exits: [*Mat] / *Min x2) -10/Mines History --------- Turn | Location | Event 4 | -11/Scrapyard | Discovered new exit (range 15) 58 | -11/Scrapyard | Entered Materials 187 | -10/Materials | Discovered new exit (range 4) 300 | -10/Materials | Build established: Mutant 305 | -10/Materials | Identified exit to Mines 374 | -10/Materials | Entered Mines 380 | -10/Mines | Met a Derelict bent on vengeance 381 | -10/Mines | Learned location of Zion (-7) 402 | -10/Mines | Learned Materials stockpile data 493 | -10/Mines | Assembled infested the area 527 | -10/Mines | Core integrity fell below 50% 530 | -10/Mines | Core integrity fell below 20% 531 | -10/Mines | Destroyed by D-53 Grenadier with Mini Grenade Launcher Last Messages --------------- Destroyed Tractor Beam. R-06 Scavenger system corrupted by crushing effect. Com. Wheel fried. R-06 Scavenger destroyed. K-01 Serf collects debris. ALERT: Infestation in the mines, dispatching Demolisher response squad. as-77123 destroyed. 0K-7J0(z) destroyed. as-27296 suffers critical hit (Smash). as-27296 destroyed. Dropped Spread Laser. Dropped Lgt. Treads. Dropped Spread Laser. C-30 ARC bursts open, deploying its payload. D-53 Grenadier unfolds itself. Acquired 10 matter. Slammed into as-41477. as-68125 destroyed. as-27723 destroyed. as-97754 destroyed. Map ----- +----------------------------------------------------+ | ?????????????????????????????????????????????????? | | ?????????????????????????????????????????????????? | | ?????????????????????????????????????????????????? | | ?????????????????????????????????????????????????? | | ?????????????????????????????????????????????????? | | ?????????????????????????????????????????????????? | | ?????????????????????????????????????????????????? | | ?????????????????????????????????????????????????? | | ?????????????????????????????????????????????????? | | ?????????????????????????????????????????????????? | | ?????????????????????????????????????????????????? | | ?????????????????????????????????????????????????? | | ?????????????????????????????????????????????????? | | ?????????????????????????????????????????????????? | | ?????????????????????????????????????????????????? | | ?????###?????????????????????????????????????????? | | ?????# ?????????????????????????????????????????? | | ?????# #?????????????????????????????????????????? | | ?????# #?????????????????????????????????????????? | | ?????# #????##???????????????????????????????????? | | ?????# #??? #???????????????????????????????????? | | ????##!### ##??????????????????????????????????? | | ????#%! ####???????????????????????????????? | | ????#] #?????????????#?????????????????? | | ????# ## """ #????####### #### ##???????????? | | ????# #?# """ ?????#%@ a a ????????? | | ????# #??# """ #?????#a%%aaa a %! ????????? | | ????# #???# #?????#=a ###### ##!#???????????? | | ???## #????# #?????#a= #?????????????????????? | | ??## #?????## #???### a #?????????????????????? | | ?## ##?????# #???# a #?????????????????????? | | ?# %[####### ##### d ##????????????????????? | | ## =%*=%[%[ "%" d #????????????????????? | | # = *=##### ##### ##????????????????????? | | *#???# #???## #?????????????????????? | | ##??# #???# #?????????????????????? | | # #??# #???### ##?????????????????????? | | #??# ##?????#####??????????????????????? | | ##??###?????????????????????????????????? | | ## #####???????????????????????????????????????? | | ?# ##???????????????????????????????????????????? | | ?# ##????????????????????????????????????????????? | | ?###?????????????????????????????????????????????? | | ?????????????????????????????????????????????????? | | ?????????????????????????????????????????????????? | | ?????????????????????????????????????????????????? | | ?????????????????????????????????????????????????? | | ?????????????????????????????????????????????????? | | | | | +----------------------------------------------------+ Best States ------------- Heat Dissipation 25 Energy Generation 18 Energy Capacity 150 Matter Stores 300 Matter Capacity 300 Sight Range 16 Terrain Scan Density 10 Evasion (%) 40 Recoil Reduction 2 Item Schematics ----------------- None Robot Schematics ------------------ None Fabricated ------------ Nothing Alien Tech Used ----------------- None Achievements -------------- None Challenges ------------ None Game ------ Seed SpectralCouplerThrower Manual? 0 Play Time 00:05:53 Cumulative 60.1 hours Start 2024.07.30 @ 19:41:09 End 2024.07.30 @ 19:45:32 Sessions 1 Manual Loads 0 Difficulty Rogue Special Mode None Game No. 138 Rogue 63 Adventurer 75 Explorer 0 Win Type - Total 0 Types 0/0/0/0/0/0/0/0/0 Lore% 37 Gallery% 42 Achievement% 33 Wizard Run 0 Options --------- Layout 0 ASCII 0 Keyboard 0 Movement Mouse Keybinds 0 Fullscreen 1 Font 24/Smallcaps Map View 76x50 Zoom Use 0% Tactical HUD 0 Map Filters NONE Filters NONE Steam 1 RUN: 6b745015-e4be-4825-a820-a0b183bd194c